[Event "3rd Sunway Formentera-A 2024"]
[Site "Formentera"]
[Date "2024.04.15"]
[Round "6.4"]
[White "Fernandez Guillen, Ernesto J."]
[Black "Dragnev, Valentin"]
[Result "1-0"]
[ECO "C41"]
[WhiteElo "2474"]
[BlackElo "2571"]
[Annotator "TA"]
[PlyCount "83"]
[EventDate "2024.04.03"]
[EventType "swiss"]
[EventCountry "ESP"]
[SourceTitle "playchess.com"]
[Source "ChessBase"]
[SourceQuality "1"]
[TimeControl "40/5400+30:1800+30"]

{[%evp 17,83,36,45,43,49,18,26,43,49,0,15,0,0,0,6,9,37,0,42,40,44,0,42,26,30,27,23,29,23,14,22,20,27,27,52,20,106,98,85,94,100,85,217,189,218,208,195,192,202,0,0,0,0,0,0,0,80,53,292,52,5456,5856,5377,1937,4786,2487,1580,949]} 1. e4 {[%emt 0:12:48]} d6 {[%emt 0:00:10]} 2. d4 {[%emt 0:00:16]} Nf6 {[%emt 0:00:06]} 3. Nc3 {[%emt 0:00:28]} e5 {[%emt 0:00:05]} 4. Nf3 {[%emt 0:00:21]} Nbd7 {[%emt 0:00:07]} 5. Bc4 {[%emt 0:02:44]} Be7 {[%emt 0:00:17]} 6. a4 {[%emt 0:00:45]} O-O {[%emt 0:00:23]} 7. O-O {[%emt 0:00:11]} c6 {[%emt 0:00:18]} 8. Re1 {[%emt 0:00:16]} h6 {[%emt 0:04:12]} 9. h3 {[%emt 0:00:50]} Re8 {[%emt 0:00:17]} 10. a5 {[%emt 0:03:31]} Rb8 {[%emt 0:02:27]} 11. d5 {[%emt 0:04:13]} b5 {[%emt 0:11:49]} 12. axb6 {[%emt 0:02:52] White has an edge.} Nxb6 {[%emt 0:00:05]} 13. Bf1 {[%emt 0:03:09]} cxd5 {[%emt 0:00:19]} 14. Nxd5 {[%emt 0:00:43]} Nbxd5 {[%emt 0:03:55]} 15. exd5 {[%emt 0:01:05]} Qc7 {[%emt 0:00:26]} 16. c4 {[%emt 0:04:27]} Bf5 {[%emt 0:09:01]} 17. Re3 {[%emt 0:09:53]} Rb7 {[%emt 0:07:19]} 18. Rea3 {[%emt 0:07:19]} Nd7 {[%emt 0:00:59]} 19. Be3 {[%emt 0:04:19]} Ra8 {[%emt 0:02:46]} 20. Qd2 {[%emt 0:06:58]} Qb8 {[%emt 0:04:20] [#]} 21. b4 $1 {[%emt 0:11:12]} Rxb4 {[%emt 0:00:49]} 22. Rxa7 {[%emt 0:06:40]} (22. Bxa7 $5 Qb7 $8 23. Be3 Rxa3 24. Rxa3 $14) 22... Rxa7 {[%emt 0:00:16]} 23. Rxa7 {[%emt 0:00:14] g4 is the strong threat.} Rb7 {[%emt 0:10:57]} 24. Ra6 {[%emt 0:05:40]} Rb1 {[%emt 0:16:01]} 25. Qa2 $36 {[%emt 0:01:20][%mdl 2048] Black must now prevent Ra8. White is more active.} Bf8 {[%emt 0:03:05]} 26. Nd2 {[%emt 0:01:34]} Re1 {[%emt 0:02:03]} (26... Rb2 $11 27. Qa3 Qb4) 27. Qa3 {[%emt 0:03:35]} Qd8 {[%emt 0:03:35]} 28. Kh2 {[%emt 0:01:42]} Qe7 {[%emt 0:09:42]} 29. g3 {[%emt 0:00:45]} Nf6 {[%emt 0:02:44]} (29... h5 $16) 30. Ra7 $18 {[%emt 0:00:51]} Nd7 {[%emt 0:03:24]} 31. Bg2 {[%emt 0:00:54]} e4 {[%emt 0:00:25]} 32. Qa4 {[%emt 0:02:49]} h5 {[%emt 0:00:38]} 33. Nb3 $2 {[%emt 0:01:36]} (33. Nf1 $18) 33... h4 $11 {[%emt 0:02:19]} 34. Nd4 {[%emt 0:00:19]} hxg3+ {[%emt 0:00:50]} 35. fxg3 {[%emt 0:00:02]} Qf6 {[%emt 0:00:05]} 36. Bd2 {[%emt 0:01:30]} Nc5 {[%emt 0:00:34]} (36... Rb1 $11 {remains equal.} 37. Nxf5 Ne5 38. Bxe4 Rb2) 37. Qe8 {[%emt 0:00:24] Really sharp! White is more active.} Rd1 $2 {[%emt 0:00:31] [#]} (37... Bd7 $14 38. Rxd7 Rd1) 38. Bg5 $2 {[%emt 0:00:27]} (38. Nxf5 $1 $18 {[%cal Oe8f8][%mdl 512] Threatening mate with Qxf8+!} Qxf5 39. Bg5 Qxg5 (39... Qf2 $2 40. Be3 $18) 40. Rxf7 (40. Bxe4 $2 Nxe4 41. Qxf7+ Kh7 $19)) 38... Qxd4 $4 {[%emt 0:01:12][%mdl 8192]} ({Don't go for} 38... Qg6 $2 39. Qxf8+ Kh7 40. Rxf7 Rxd4 41. Bf6 (41. Rxf5 Nd7 $18) 41... Qxf6 42. Rxf6 $18) (38... Bd7 $14 39. Rxd7 Qxd4 40. Qxf7+ (40. Rxd6 $2 Qg1#) (40. Qxf8+ Kh7 $11) 40... Kh7) 39. Qxf7+ $18 {[%emt 0:00:11] White is clearly winning.} (39. Rxf7 $2 Qg1#) 39... Kh7 {[%emt 0:00:07]} 40. Qxf5+ {[%emt 0:00:00]} (40. Qxf8 $2 Qg1#) 40... Kg8 {[%emt 0:00:00]} 41. h4 {[%emt 0:04:58] Intending Ra8 and mate.} Nd3 {[%emt 0:01:21]} 42. Rf7 {[%emt 0:27:39] Weighted Error Value: White=0.28 (precise) /Black=0.36.  Loses game:     	---       	Black=2      Missed win:     	White=2     	---        Mistake:       	---       	Black=3      Inaccurate:     	White=5     	Black=3      OK:         	White=10    	Black=10     Best:        	White=2     	Black=4} (42. Qxe4 $2 {gets mated.} Qg1+ 43. Kh3 Nf2#) 1-0

[Event "3rd Sunway Formentera-A 2024"]
[Site "Formentera"]
[Date "2024.04.15"]
[Round "6.5"]
[White "Mohamed Anees M"]
[Black "Raja Rithvik R"]
[Result "1-0"]
[ECO "B50"]
[WhiteElo "2253"]
[BlackElo "2532"]
[Annotator "TA"]
[PlyCount "77"]
[EventDate "2024.04.03"]
[EventType "swiss"]
[EventCountry "ESP"]
[SourceTitle "playchess.com"]
[Source "ChessBase"]
[SourceQuality "1"]
[TimeControl "40/5400+30:1800+30"]

{[%evp 9,77,0,0,0,0,0,0,-3,-23,-7,40,35,75,48,58,55,52,59,81,48,53,52,54,51,34,38,100,97,124,99,110,103,269,239,390,397,396,414,412,408,400,386,389,417,422,409,445,466,695,663,662,454,461,450,560,551,984,983,719,507,1319,1319,1315,1304,1304,1297,1270,1031,693,634]} 1. e4 {[%emt 1:31:00]} c5 {[%emt 0:03:59]} 2. Nf3 {[%emt 0:00:00]} d6 {[%emt 0:00:05]} 3. Bc4 {[%emt 0:00:00]} Nf6 {[%emt 0:00:30]} 4. Nc3 {[%emt 0:00:00]} e6 {[%emt 0:00:20]} 5. d4 {[%emt 0:00:00]} cxd4 {[%emt 0:00:06]} 6. Qxd4 {[%emt 0:00:00]} Nc6 {[%emt 0:00:46]} 7. Qd3 {[%emt 0:00:00]} Be7 {[%emt 0:02:48]} 8. Bf4 {[%emt 0:00:00] The position is equal.} O-O {[%emt 0:03:00]} 9. O-O-O {[%emt 0:00:00]} Ne8 {[%emt 0:03:34]} (9... Qa5 $11) 10. h4 {[%emt 0:00:00][%cal Bh2h4,Bh4h5,Bh5h6][%mdl 32]} Qa5 {[%emt 0:08:28]} 11. Bb3 {[%emt 0:00:00] White is more active.} b6 {[%emt 0:16:38]} 12. Kb1 {[%emt 0:00:00][%cal Oe4e5]} Ba6 {[%emt 0:02:32]} 13. Qe3 {[%emt 0:00:00]} Nf6 {[%emt 0:08:57]} 14. h5 {[%emt 0:00:00] aiming for h6.} Ng4 {[%emt 0:04:31]} 15. Qe1 {[%emt 0:00:00][%cal Oh5h6] Black must now prevent h6!} Qc5 {[%emt 0:02:57]} 16. Bg3 {[%emt 0:00:00][%cal Oc3d5] Threatens to win with Nd5!} b5 {[%emt 0:11:29]} 17. Ne2 {[%emt 0:00:00]} Nce5 {[%emt 0:12:54]} ({Black should try} 17... Bc8 $14) 18. Nxe5 $16 {[%emt 0:00:00]} Nxe5 {[%emt 0:00:36]} 19. h6 {[%emt 0:00:00] hxg7 is the strong threat.} g6 {[%emt 0:00:03]} 20. f4 {[%emt 0:00:00]} Ng4 {[%emt 0:03:00] This costs Black the game.} (20... Nc4 $16) 21. f5 {[%emt 0:00:00]} gxf5 $2 {[%emt 0:04:45]} (21... Bc8 {keeps fighting.} 22. Nd4 exf5) 22. exf5 $18 {[%emt 0:00:00]} Qxf5 {[%emt 0:01:00]} 23. Nd4 {[%emt 0:00:00]} Qg6 {[%emt 0:02:44] [#]} 24. Nxe6 $1 {[%emt 0:00:00][%mdl 512]} fxe6 {[%emt 0:01:19]} 25. Qxe6+ {[%emt 0:00:00]} (25. Bxd6 Bxd6 26. Rxd6 (26. Bxe6+ Kh8 $11) 26... Bc8 $11) (25. Bxe6+ Kh8 $18) 25... Qxe6 {[%emt 0:00:20]} 26. Bxe6+ {[%emt 0:00:00]} Kh8 {[%emt 0:00:04]} 27. Bxg4 {[%emt 0:00:00]} Bb7 {[%emt 0:02:23]} 28. Rhe1 {[%emt 0:00:00] White is clearly winning.} (28. Bxd6 Bxd6 29. Rxd6 Bxg2 $18) 28... Rg8 {[%emt 0:00:36]} (28... Bf6 $142 29. Rxd6 (29. Bxd6 Rfe8 $18) 29... Rg8) 29. Rxe7 {[%emt 0:00:00]} Rxg4 {[%emt 0:00:02]} 30. Rxb7 {[%emt 0:00:00]} Rxg3 {[%emt 0:00:02]} 31. Rxd6 {[%emt 0:00:00]} (31. Rxb5 Rxg2 32. c3 (32. Rxd6 $2 Rg1+) 32... Rg6 $18) 31... Rxg2 {[%emt 0:00:03][%mdl 4096] Endgame. [#] ( -> ...Rg1+). KRR-KRR} 32. a4 $1 {[%emt 0:00:00][%mdl 512]} bxa4 {[%emt 0:01:49]} (32... b4 33. Rdd7) 33. Rdd7 $1 {[%emt 0:00:00][%csl LRa7,LRh7]} Kg8 {[%emt 0:00:36]} 34. Rxh7 {[%emt 0:00:00][%cal Ob1a2] And now Ka2! would win.} a5 {[%emt 0:00:38]} (34... a3 $142 35. Rhg7+ (35. bxa3 a5 $18) (35. Rxa7 a2+ 36. Kxa2 Rxa7+ 37. Rxa7 Rxc2 $18) 35... Rxg7 36. Rxg7+ Kh8) 35. Ka2 {[%emt 0:00:01]} Rc8 {[%emt 0:00:28] [#]} 36. c3 $1 {[%emt 0:00:08][%mdl 512]} Rg1 {[%emt 0:00:54]} (36... Rc6 37. Ka3) 37. Rbg7+ {[%emt 0:01:02]} Rxg7 {[%emt 0:00:07]} 38. Rxg7+ {[%emt 0:00:02]} Kh8 {[%emt 0:00:04]} 39. Rg5 {[%emt 0:00:14] Weighted Error Value: White=0.20 (precise) /Black=0.42.  Loses game:     	---       	Black=1      Mistake:       	---       	Black=4      Inaccurate:     	White=2     	Black=2      OK:         	White=11    	Black=11     Best:        	White=2     	Black=1      Brilliant:      	White=2     	---} 1-0

[Event "3rd Sunway Formentera-A 2024"]
[Site "Formentera"]
[Date "2024.04.15"]
[Round "6.6"]
[White "Baklan, Vladimir"]
[Black "Colbow, Collin"]
[Result "1-0"]
[ECO "B45"]
[WhiteElo "2531"]
[BlackElo "2376"]
[Annotator "TA"]
[PlyCount "123"]
[EventDate "2024.04.03"]
[EventType "swiss"]
[EventCountry "ESP"]
[SourceTitle "playchess.com"]
[Source "ChessBase"]
[SourceQuality "1"]
[TimeControl "40/5400+30:1800+30"]

{[%evp 37,123,-24,0,-43,-50,-41,13,8,2,16,26,0,0,0,0,-3,-14,-20,-16,-16,0,0,0,0,0,0,0,0,0,0,0,0,3,6,8,8,8,8,1,4,28,29,31,16,102,16,14,14,85,85,85,85,85,35,51,51,49,49,189,189,189,189,804,804,794,781,823,658,1360,1251,1134,1251,1251,1189,958,590,2797,1897,4602,4586,1736,2445,29982,29983,29982,29983,29982,29983]} 1. e4 {[%emt 0:00:03]} c5 {[%emt 0:04:22]} 2. Nf3 {[%emt 0:00:03]} e6 {[%emt 0:00:14]} 3. d4 {[%emt 0:00:27]} cxd4 {[%emt 0:00:04]} 4. Nxd4 {[%emt 0:00:02]} Nc6 {[%emt 0:00:36]} 5. Nc3 {[%emt 0:00:13]} Nf6 {[%emt 0:00:09]} 6. a3 {[%emt 0:07:43]} d6 {[%emt 0:00:45]} 7. g3 {[%emt 0:00:21] B45: Sicilian Four Knights.} Be7 {[%emt 0:04:19]} 8. Bg2 {[%emt 0:00:14]} O-O {[%emt 0:00:29]} 9. O-O {[%emt 0:01:49]} Bd7 {[%emt 0:06:10]} 10. Nb3 {[%emt 0:03:41]} Rc8 {[%emt 0:06:13]} 11. f4 $146 {[%emt 0:10:03]} ({Predecessor:} 11. Be3 b6 12. f4 Ne8 13. g4 Nc7 14. Qe2 Bf6 15. Rad1 Bxc3 16. bxc3 Qe7 17. Bc1 {½-½ Bilyavskyy,B (1828)-Tochtrop,L (1880) GER-ch Seniors 18th 2006 (7)}) 11... Na5 {[%emt 0:14:29]} 12. Nd4 {[%emt 0:07:33]} Qb6 {[%emt 0:09:26]} 13. Kh1 {[%emt 0:01:58]} Rc4 {[%emt 0:10:21]} 14. Nde2 {[%emt 0:05:10]} Rcc8 {[%emt 0:07:45]} 15. Qd3 {[%emt 0:08:19]} Rfd8 {[%emt 0:02:42]} 16. Be3 {[%emt 0:05:22]} Qc7 {[%emt 0:00:08]} 17. Rad1 {[%emt 0:02:31]} a6 {[%emt 0:03:06]} 18. b3 {[%emt 0:02:58]} b5 {[%emt 0:00:49]} 19. Qd4 {[%emt 0:06:03]} Rb8 {[%emt 0:15:44]} 20. h3 {[%emt 0:05:28]} Nc6 {[%emt 0:02:30]} 21. Qd2 {[%emt 0:00:06]} b4 {[%emt 0:00:27]} (21... a5 $15) 22. axb4 $11 {[%emt 0:00:05]} Nxb4 {[%emt 0:00:10]} 23. g4 {[%emt 0:01:47]} d5 {[%emt 0:01:43]} 24. e5 {[%emt 0:02:13]} (24. exd5 Bc6 25. Nd4 Bxd5 (25... Nbxd5 26. Nxc6 Qxc6 27. Bd4 $16) 26. Nxd5 Nfxd5 $17) (24. Bd4 $5) 24... Ne4 $1 {[%emt 0:00:49]} 25. Nxe4 {[%emt 0:02:31]} dxe4 {[%emt 0:00:04]} 26. Nd4 $1 {[%emt 0:00:09]} (26. Bxe4 $2 Bc6 27. Bd4 Bxe4+ $19) 26... Nd5 {[%emt 0:01:12]} 27. c4 {[%emt 0:00:25]} (27. Bxe4 Nc3 28. Qg2 Nxd1 29. Rxd1 a5 $19) 27... Nxe3 {[%emt 0:01:41]} 28. Qxe3 {[%emt 0:00:04]} a5 {[%emt 0:00:44]} 29. Qxe4 {[%emt 0:02:18]} a4 {[%emt 0:00:34]} 30. bxa4 {[%emt 0:00:27]} Bxa4 {[%emt 0:01:23]} 31. Rc1 {[%emt 0:01:05]} Qc5 {[%emt 0:05:34]} 32. Nc6 {[%emt 0:01:47]} Bxc6 {[%emt 0:00:03]} 33. Qxc6 {[%emt 0:00:05]} Qxc6 {[%emt 0:01:20]} 34. Bxc6 {[%emt 0:00:09]} Bc5 {[%emt 0:00:14]} 35. Rcd1 {[%emt 0:02:14]} g6 {[%emt 0:01:00]} 36. f5 {[%emt 0:00:23]} gxf5 {[%emt 0:00:18]} 37. gxf5 {[%emt 0:00:04]} Rxd1 {[%emt 0:00:33]} 38. Rxd1 {[%emt 0:00:06]} exf5 {[%emt 0:00:08]} 39. Rf1 {[%emt 0:00:07]} Rb3 {[%emt 0:01:02]} 40. Rxf5 {[%emt 0:00:00]} Rxh3+ {[%emt 0:00:00]} 41. Kg2 {[%emt 0:00:13]} Rc3 $1 {[%emt 0:17:19]} 42. Bd5 {[%emt 0:01:49]} Rc2+ {[%emt 0:05:27]} (42... Kg7 $1 $11 {keeps the balance.}) 43. Kf1 $16 {[%emt 0:04:12]} Rc1+ {[%emt 0:02:05]} 44. Ke2 {[%emt 0:01:30]} Rc2+ {[%emt 0:00:03]} 45. Ke1 {[%emt 0:02:15]} (45. Kd3 $16 Rf2 46. Bxf7+ Kf8 47. Rxf2 Bxf2 48. Be6) 45... Kg7 {[%emt 0:01:25]} 46. Rxf7+ {[%emt 0:01:33]} Kg6 {[%emt 0:00:56]} 47. e6 {[%emt 0:00:58]} Bb4+ {[%emt 0:02:38]} (47... Rc3 $1 $14) 48. Kf1 $18 {[%emt 0:00:39]} Rc1+ {[%emt 0:00:25]} 49. Kf2 $1 {[%emt 0:00:20]} h5 $2 {[%emt 0:00:54]} (49... Kg5 50. Rb7 (50. Rxh7 Bc5+ 51. Ke2 Rc3 $16) 50... Bc5+ 51. Ke2 Rc3) 50. Rb7 $18 {[%emt 0:02:08]} ({Less strong is} 50. e7 Re1 $14) 50... Bc5+ {[%emt 0:00:34]} 51. Ke2 $1 {[%emt 0:00:45]} Rc3 {[%emt 0:01:44]} 52. Kd2 $1 {[%emt 0:01:41]} Re3 {[%emt 0:00:20] [#]} 53. Rb5 $1 {[%emt 0:01:27]} Bd4 {[%emt 0:00:30]} 54. c5 {[%emt 0:00:06]} Re5 {[%emt 0:03:18]} 55. c6 {[%emt 0:00:48]} Bb6 {[%emt 0:00:03]} 56. Kd3 {[%emt 0:07:19]} Kf6 {[%emt 0:00:02] [#]} 57. Kc4 $1 {[%emt 0:00:10]} (57. Rxb6 Rxd5+ 58. Kc4 Rd1 $11) 57... Bd8 {[%emt 0:00:03]} 58. Rb8 {[%emt 0:00:22]} Ba5 {[%emt 0:00:17]} 59. Rf8+ {[%emt 0:01:33]} Ke7 {[%emt 0:02:02]} 60. Rf7+ {[%emt 0:00:05]} Kd8 {[%emt 0:00:23]} 61. Rd7+ {[%emt 0:00:04]} Kc8 {[%emt 0:00:05]} 62. e7 {[%emt 0:00:11]} 1-0

[Event "3rd Sunway Formentera-A 2024"]
[Site "Formentera"]
[Date "2024.04.15"]
[Round "6.7"]
[White "Shimelkov, Vasiliy"]
[Black "Prado, Alexandra"]
[Result "0-1"]
[ECO "A15"]
[WhiteElo "2112"]
[BlackElo "1839"]
[Annotator "NA RC"]
[PlyCount "80"]
[EventDate "2024.04.03"]
[EventType "swiss"]
[EventCountry "ESP"]
[SourceTitle "playchess.com"]
[Source "ChessBase"]
[SourceQuality "1"]
[TimeControl "40/5400+30:1800+30"]

1. Nf3 {[%emt 0:00:01]} Nf6 {[%emt 0:05:03]} 2. c4 {[%emt 0:00:12]} g6 {[%emt 0:01:47]} 3. b3 {[%emt 0:01:37]} Bg7 {[%emt 0:01:24]} 4. Bb2 {[%emt 0:00:09]} O-O {[%emt 0:00:15]} 5. g3 {[%emt 0:00:21]} d6 {[%emt 0:04:35]} 6. Bg2 {[%emt 0:00:27]} e5 {[%emt 0:01:46]} 7. d3 {[%emt 0:00:22]} h6 {[%emt 0:01:57]} 8. O-O {[%emt 0:00:43]} Nc6 {[%emt 0:06:31]} 9. a3 {[%emt 0:02:17]} a5 {[%emt 0:01:17]} 10. d4 {[%emt 0:06:02]} e4 {[%emt 0:21:58]} 11. Ne1 {[%emt 0:03:22]} Re8 {[%emt 0:03:05]} 12. Nc2 {[%emt 0:01:02]} Nh7 {[%emt 0:02:15]} 13. Nc3 {[%emt 0:01:47]} f5 {[%emt 0:01:36]} 14. Qd2 {[%emt 0:03:10]} Bd7 {[%emt 0:03:13]} 15. b4 {[%emt 0:04:51]} Ng5 {[%emt 0:13:30]} 16. b5 {[%emt 0:04:21]} Ne7 {[%emt 0:01:00]} 17. a4 {[%emt 0:04:29]} c6 {[%emt 0:03:01]} 18. Ba3 {[%emt 0:01:24]} Be6 {[%emt 0:02:32]} 19. Ne3 {[%emt 0:00:54]} d5 {[%emt 0:05:48]} 20. c5 {[%emt 0:04:00]} f4 {[%emt 0:02:42]} 21. gxf4 {[%emt 0:00:36]} Nh3+ {[%emt 0:00:14]} 22. Bxh3 {[%emt 0:00:26]} Bxh3 {[%emt 0:00:02]} 23. Ng2 {[%emt 0:00:07]} Nf5 {[%emt 0:00:48]} 24. Rfd1 {[%emt 0:05:44]} Bxd4 {[%emt 0:03:43]} 25. e3 {[%emt 0:01:12]} Bxg2 {[%emt 0:01:02]} 26. exd4 {[%emt 0:01:40]} Bf3 {[%emt 0:00:45]} 27. Ne2 {[%emt 0:00:49]} Qh4 {[%emt 0:01:14]} 28. Qe1 {[%emt 0:00:06]} Qg4+ {[%emt 0:01:44]} 29. Ng3 {[%emt 0:00:08]} h5 {[%emt 0:00:38]} 30. Qf1 {[%emt 0:00:40]} Kh8 {[%emt 0:05:51]} 31. h3 {[%emt 0:03:39]} Qh4 {[%emt 0:00:09]} 32. Kh2 {[%emt 0:00:17]} Qxf4 {[%emt 0:01:42]} 33. Bc1 {[%emt 0:00:07]} e3 {[%emt 0:00:21]} 34. Ra3 {[%emt 0:00:43]} h4 {[%emt 0:00:16]} 35. Bxe3 {[%emt 0:00:44]} hxg3+ {[%emt 0:00:27]} 36. Kg1 {[%emt 0:00:05]} Qh4 {[%emt 0:01:46]} 37. Bg5 {[%emt 0:01:13]} Qh5 {[%emt 0:01:10]} 38. Rxf3 {[%emt 0:01:52]} Qxf3 {[%emt 0:00:25]} 39. Rd3 {[%emt 0:00:06]} gxf2+ {[%emt 0:00:32]} 40. Kh2 {[%emt 0:00:00]} Qe2 {[%emt 0:00:00]} 0-1

[Event "3rd Sunway Formentera-A 2024"]
[Site "Formentera"]
[Date "2024.04.15"]
[Round "6.8"]
[White "Mazet, Julien"]
[Black "Schulman, Julia"]
[Result "1-0"]
[ECO "D02"]
[WhiteElo "2031"]
[BlackElo "1732"]
[Annotator "NA RC"]
[PlyCount "103"]
[EventDate "2024.04.03"]
[EventType "swiss"]
[EventCountry "ESP"]
[SourceTitle "playchess.com"]
[Source "ChessBase"]
[SourceQuality "1"]
[TimeControl "40/5400+30:1800+30"]

1. d4 {[%emt 0:00:08]} Nf6 {[%emt 0:00:13]} 2. Nf3 {[%emt 0:00:15]} c5 {[%emt 0:00:32]} 3. c3 {[%emt 0:00:20]} e6 {[%emt 0:02:01]} 4. Bf4 {[%emt 0:00:22]} d5 {[%emt 0:05:40]} 5. e3 {[%emt 0:00:50]} Nc6 {[%emt 0:03:02]} 6. Nbd2 {[%emt 0:00:29]} Be7 {[%emt 0:01:36]} 7. h3 {[%emt 0:00:57]} O-O {[%emt 0:00:57]} 8. Bd3 {[%emt 0:00:24]} h6 {[%emt 0:06:14]} 9. O-O {[%emt 0:01:04]} Re8 {[%emt 0:00:32]} 10. Ne5 {[%emt 0:02:07]} Bf8 {[%emt 0:05:23]} 11. Qf3 {[%emt 0:05:59]} Nxe5 {[%emt 0:08:24]} 12. dxe5 {[%emt 0:01:22]} Nh7 {[%emt 0:03:11]} 13. Rfd1 {[%emt 0:05:13]} f5 {[%emt 0:11:54]} 14. exf6 {[%emt 0:00:50]} Qxf6 {[%emt 0:01:16]} 15. Qh5 {[%emt 0:03:51]} Bd7 {[%emt 0:09:27]} 16. Nf3 {[%emt 0:03:47]} Re7 {[%emt 0:02:12]} 17. Be5 {[%emt 0:01:00]} Be8 {[%emt 0:01:14]} 18. Bxf6 {[%emt 0:00:46]} Bxh5 {[%emt 0:00:07]} 19. Bxe7 {[%emt 0:00:19]} Bxe7 {[%emt 0:00:05]} 20. g4 {[%emt 0:00:44]} Be8 {[%emt 0:00:34]} 21. Ne5 {[%emt 0:01:34]} Bd6 {[%emt 0:02:01]} 22. f4 {[%emt 0:00:40]} Rd8 {[%emt 0:02:08]} 23. c4 {[%emt 0:02:58]} Bxe5 {[%emt 0:03:17]} 24. Bxh7+ {[%emt 0:01:05]} Kxh7 {[%emt 0:00:06]} 25. fxe5 {[%emt 0:00:16]} d4 {[%emt 0:00:19]} 26. exd4 {[%emt 0:03:07]} cxd4 {[%emt 0:00:06]} 27. Rd2 {[%emt 0:00:23]} Bg6 {[%emt 0:00:34]} 28. Rad1 {[%emt 0:00:39]} d3 {[%emt 0:00:14]} 29. Kf2 {[%emt 0:01:22]} Rd4 {[%emt 0:01:18]} 30. b3 {[%emt 0:00:26]} Kg8 {[%emt 0:02:11]} 31. Kg3 {[%emt 0:01:54]} h5 {[%emt 0:04:07]} 32. Rf1 {[%emt 0:01:14]} Kh7 {[%emt 0:03:04]} 33. Rf4 {[%emt 0:02:04]} h4+ {[%emt 0:03:38]} 34. Kf3 {[%emt 0:00:11]} Rd7 {[%emt 0:00:38]} 35. Ke3 {[%emt 0:00:26]} Kh6 {[%emt 0:01:39]} 36. Rd4 {[%emt 0:01:01]} Rf7 {[%emt 0:02:11]} 37. Rf2 {[%emt 0:00:11]} Rc7 {[%emt 0:01:02]} 38. Rd6 {[%emt 0:00:37]} Re7 {[%emt 0:00:43]} 39. b4 {[%emt 0:00:34]} b6 {[%emt 0:01:06]} 40. c5 {[%emt 0:00:00]} bxc5 {[%emt 0:00:00]} 41. bxc5 {[%emt 0:02:49]} Rb7 {[%emt 0:04:11]} 42. Rxe6 {[%emt 0:02:08]} Rb4 {[%emt 0:00:54]} 43. c6 {[%emt 0:01:24]} Re4+ {[%emt 0:00:55]} 44. Kd2 {[%emt 0:00:19]} Rc4 {[%emt 0:01:31]} 45. Rd6 {[%emt 0:01:14]} Rc2+ {[%emt 0:04:36]} 46. Ke3 {[%emt 0:00:12]} Rc5 {[%emt 0:02:04]} 47. e6 {[%emt 0:01:01]} a5 {[%emt 0:01:50]} 48. Rb2 {[%emt 0:01:34]} Re5+ {[%emt 0:04:24]} 49. Kd2 {[%emt 0:00:17]} Kg5 {[%emt 0:03:01]} 50. c7 {[%emt 0:00:55]} Re2+ {[%emt 0:02:18]} 51. Kc3 {[%emt 0:03:27]} Re1 {[%emt 0:01:38]} 52. e7 {[%emt 0:02:31]} 1-0